[Event "44th Chess Olympiad Open 2022"]
[Site "Chennai"]
[Date "2022.08.09"]
[Round "11.44"]
[White "Silva, David"]
[Black "Mwali, Chitumbo"]
[Result "1/2-1/2"]
[ECO "C77"]
[WhiteElo "2315"]
[BlackElo "2320"]
[Annotator "RC"]
[PlyCount "62"]
[EventDate "2022.07.29"]
[EventType "team-tourn"]
[EventCountry "IND"]
[SourceTitle "playchess.com"]
[Source "ChessBase"]
[SourceQuality "1"]
[WhiteTeam "Angola"]
[BlackTeam "Zambia"]
[WhiteTeamCountry "ANG"]
[BlackTeamCountry "ZAM"]
[TimeControl "40/5400+30:1800+30"]

1. e4 {[%emt 0:03:43]} e5 {[%emt 0:00:03]} 2. Nf3 {[%emt 0:01:18]} Nc6 {[%emt 0:00:03]} 3. Bb5 {[%emt 0:00:22]} a6 {[%emt 0:00:07]} 4. Ba4 {[%emt 0:00:24]} Nf6 {[%emt 0:00:07]} 5. Qe2 {[%emt 0:00:06]} b5 {[%emt 0:00:38]} 6. Bb3 {[%emt 0:00:09]} Be7 {[%emt 0:00:05]} 7. d4 {[%emt 0:00:34]} d6 {[%emt 0:00:52]} 8. dxe5 {[%emt 0:05:29]} Nxe5 {[%emt 0:01:49]} 9. Nxe5 {[%emt 0:00:03]} dxe5 {[%emt 0:00:03]} 10. a4 {[%emt 0:00:32]} Rb8 {[%emt 0:00:58]} 11. O-O {[%emt 0:06:55]} O-O {[%emt 0:03:48]} 12. axb5 {[%emt 0:02:33]} axb5 {[%emt 0:00:05]} 13. Rd1 {[%emt 0:00:59]} Qe8 {[%emt 0:00:08]} 14. Bg5 {[%emt 0:00:28]} Bg4 {[%emt 0:08:14]} 15. f3 {[%emt 0:00:09]} Be6 {[%emt 0:00:06]} 16. Nd2 {[%emt 0:02:41]} Nd7 {[%emt 0:13:21]} 17. Be3 {[%emt 0:01:23]} Nc5 {[%emt 0:03:01]} 18. Bxe6 {[%emt 0:01:01]} Nxe6 {[%emt 0:00:05]} 19. c3 {[%emt 0:01:05]} Qc6 {[%emt 0:01:59]} 20. Nb3 {[%emt 0:01:40]} Rfd8 {[%emt 0:04:50]} 21. Na5 {[%emt 0:01:35]} Qe8 {[%emt 0:00:09]} 22. g3 {[%emt 0:04:22]} h6 {[%emt 0:02:25]} 23. Rd5 {[%emt 0:00:19]} f6 {[%emt 0:03:33]} 24. Nb3 {[%emt 0:12:12]} c6 {[%emt 0:00:51]} 25. Rdd1 {[%emt 0:02:09]} Rxd1+ {[%emt 0:01:28]} 26. Rxd1 {[%emt 0:00:02]} Rd8 {[%emt 0:00:10]} 27. Bb6 {[%emt 0:02:21]} Rxd1+ {[%emt 0:01:05]} 28. Qxd1 {[%emt 0:00:02]} Qb8 {[%emt 0:01:25]} 29. Be3 {[%emt 0:01:05]} Qd8 {[%emt 0:00:17]} 30. Qe2 {[%emt 0:02:00]} Qd7 {[%emt 0:00:35]} 31. c4 {[%emt 0:04:40]} Bb4 {[%emt 0:02:28]} 1/2-1/2

[Event "44th Chess Olympiad Open 2022"]
[Site "Chennai"]
[Date "2022.08.09"]
[Round "11.44"]
[White "Phiri, Richmond"]
[Black "Miguel, Sergio"]
[Result "1-0"]
[ECO "E09"]
[WhiteElo "2293"]
[BlackElo "2274"]
[Annotator "RC"]
[PlyCount "59"]
[EventDate "2022.07.29"]
[EventType "team-tourn"]
[EventCountry "IND"]
[SourceTitle "playchess.com"]
[Source "ChessBase"]
[SourceQuality "1"]
[WhiteTeam "Zambia"]
[BlackTeam "Angola"]
[WhiteTeamCountry "ZAM"]
[BlackTeamCountry "ANG"]
[TimeControl "40/5400+30:1800+30"]

1. d4 {[%emt 0:00:13]} Nf6 {[%emt 0:01:16]} 2. Nf3 {[%emt 0:01:51]} e6 {[%emt 0:00:15]} 3. g3 {[%emt 0:00:45]} d5 {[%emt 0:02:48]} 4. Bg2 {[%emt 0:00:04]} Nbd7 {[%emt 0:00:45]} 5. O-O {[%emt 0:00:06]} Be7 {[%emt 0:00:32]} 6. c4 {[%emt 0:01:32]} c6 {[%emt 0:00:09]} 7. Nbd2 {[%emt 0:05:45]} O-O {[%emt 0:01:24]} 8. Qc2 {[%emt 0:00:04]} b6 {[%emt 0:02:12]} 9. e4 {[%emt 0:00:08]} Bb7 {[%emt 0:00:14]} 10. b3 {[%emt 0:36:34]} a5 {[%emt 0:06:11]} 11. Bb2 {[%emt 0:01:55]} Ra7 {[%emt 0:19:11]} 12. e5 {[%emt 0:08:53]} Ne8 {[%emt 0:05:41]} 13. a3 {[%emt 0:00:20]} Qa8 {[%emt 0:12:17]} 14. Rfe1 {[%emt 0:08:27]} Nc7 {[%emt 0:05:04]} 15. cxd5 {[%emt 0:04:36]} Nxd5 {[%emt 0:00:02]} 16. Ne4 {[%emt 0:00:25]} Rd8 {[%emt 0:05:22]} 17. h4 {[%emt 0:04:10]} Ba6 {[%emt 0:07:31]} 18. Bc1 {[%emt 0:03:43]} Rc8 {[%emt 0:04:51]} 19. Bg5 {[%emt 0:01:07]} Bf8 {[%emt 0:00:27]} 20. Bd2 {[%emt 0:06:26]} c5 {[%emt 0:03:12]} 21. Neg5 {[%emt 0:05:39]} g6 {[%emt 0:00:43]} 22. Qe4 {[%emt 0:01:09]} cxd4 {[%emt 0:04:18]} 23. h5 {[%emt 0:00:28]} Nc5 {[%emt 0:02:04]} 24. Qh4 {[%emt 0:01:07]} h6 {[%emt 0:05:59]} 25. hxg6 {[%emt 0:02:02]} fxg6 {[%emt 0:00:11]} 26. Ne4 {[%emt 0:02:15]} Nxb3 {[%emt 0:08:56]} 27. Qg4 {[%emt 0:01:22]} Kh7 {[%emt 0:01:30]} 28. Qxe6 {[%emt 0:00:33]} Nxa1 {[%emt 0:00:42]} 29. Nfg5+ {[%emt 0:00:09]} hxg5 {[%emt 0:00:42]} 30. Nxg5+ {[%emt 0:00:58]} 1-0

[Event "44th Chess Olympiad Open 2022"]
[Site "Chennai"]
[Date "2022.08.09"]
[Round "11.44"]
[White "Kabwe Timothy"]
[Black "Lutuima, Amaro"]
[Result "1/2-1/2"]
[ECO "D02"]
[WhiteElo "2248"]
[BlackElo "2048"]
[Annotator "RC"]
[PlyCount "114"]
[EventDate "2022.07.29"]
[EventType "team-tourn"]
[EventCountry "IND"]
[SourceTitle "playchess.com"]
[Source "ChessBase"]
[SourceQuality "1"]
[WhiteTeam "Zambia"]
[BlackTeam "Angola"]
[WhiteTeamCountry "ZAM"]
[BlackTeamCountry "ANG"]
[TimeControl "40/5400+30:1800+30"]

1. d4 {[%emt 0:03:09]} Nf6 {[%emt 0:04:20]} 2. Nf3 {[%emt 0:00:09]} e6 {[%emt 0:00:09]} 3. Bf4 {[%emt 0:00:12]} d5 {[%emt 0:00:23]} 4. e3 {[%emt 0:00:12]} Bd6 {[%emt 0:00:43]} 5. Ne5 {[%emt 0:00:18]} O-O {[%emt 0:00:11]} 6. Nd2 {[%emt 0:00:15]} c5 {[%emt 0:01:02]} 7. c3 {[%emt 0:00:06]} Nc6 {[%emt 0:00:11]} 8. Bg3 {[%emt 0:00:12]} Bxe5 {[%emt 0:00:16]} 9. dxe5 {[%emt 0:00:56]} Nd7 {[%emt 0:00:10]} 10. f4 {[%emt 0:00:17]} c4 {[%emt 0:00:13]} 11. Nf3 {[%emt 0:01:22]} Qb6 {[%emt 0:00:23]} 12. Qd2 {[%emt 0:00:14]} Nc5 {[%emt 0:00:12]} 13. Nd4 {[%emt 0:00:12]} f6 {[%emt 0:05:05]} 14. exf6 {[%emt 0:01:12]} Rxf6 {[%emt 0:00:30]} 15. Be2 {[%emt 0:00:19]} Bd7 {[%emt 0:01:07]} 16. O-O {[%emt 0:00:54]} Ne4 {[%emt 0:00:19]} 17. Qc2 {[%emt 0:00:18]} Nxg3 {[%emt 0:01:55]} 18. hxg3 {[%emt 0:00:21]} Rg6 {[%emt 0:01:06]} 19. Bh5 {[%emt 0:01:06]} Rh6 {[%emt 0:02:25]} 20. Bf3 {[%emt 0:00:08]} Kh8 {[%emt 0:04:00]} 21. Rae1 {[%emt 0:02:35]} e5 {[%emt 0:10:25]} 22. Nxc6 {[%emt 0:02:12]} bxc6 {[%emt 0:00:28]} 23. fxe5 {[%emt 0:01:16]} Qc7 {[%emt 0:00:49]} 24. Qf2 {[%emt 0:01:54]} Qxe5 {[%emt 0:00:44]} 25. e4 {[%emt 0:00:12]} Qg5 {[%emt 0:02:21]} 26. exd5 {[%emt 0:01:01]} cxd5 {[%emt 0:01:30]} 27. Bxd5 {[%emt 0:06:04]} Qxd5 {[%emt 0:21:07]} 28. Rd1 {[%emt 0:00:13]} Qe6 {[%emt 0:06:27]} 29. Qf8+ {[%emt 0:00:24]} Rxf8 {[%emt 0:03:47]} 30. Rxf8+ {[%emt 0:00:08]} Qg8 {[%emt 0:00:25]} 31. Rxg8+ {[%emt 0:00:09]} Kxg8 {[%emt 0:00:02]} 32. Rxd7 {[%emt 0:00:16]} Rb6 {[%emt 0:00:11]} 33. Rd2 {[%emt 0:00:20]} Ra6 {[%emt 0:02:54]} 34. b3 {[%emt 0:01:20]} Ra3 {[%emt 0:02:51]} 35. Rb2 {[%emt 0:00:43]} a5 {[%emt 0:00:02]} 36. Kf2 {[%emt 0:01:49]} a4 {[%emt 0:00:53]} 37. Ke3 {[%emt 0:12:53]} cxb3 {[%emt 0:01:41]} 38. axb3 {[%emt 0:00:08]} axb3 {[%emt 0:00:05]} 39. c4 {[%emt 0:00:49]} Ra2 {[%emt 0:00:38]} 40. Rxb3 {[%emt 0:00:22]} Rxg2 {[%emt 0:00:03]} 41. Kd4 {[%emt 0:30:23]} Kf7 {[%emt 0:34:35]} 42. c5 {[%emt 0:00:25]} Rc2 {[%emt 0:04:09]} 43. Kd5 {[%emt 0:00:23]} h5 {[%emt 0:00:33]} 44. Rb7+ {[%emt 0:01:53]} Kf6 {[%emt 0:00:17]} 45. c6 {[%emt 0:00:06]} Rd2+ {[%emt 0:01:46]} 46. Kc5 {[%emt 0:01:37]} Rc2+ {[%emt 0:00:44]} 47. Kb6 {[%emt 0:01:20]} g5 {[%emt 0:00:55]} 48. Rh7 {[%emt 0:00:51]} Kf5 {[%emt 0:00:01]} 49. c7 {[%emt 0:05:40]} Kg4 {[%emt 0:00:39]} 50. Rg7 {[%emt 0:00:18]} Kf5 {[%emt 0:03:09]} 51. Rd7 {[%emt 0:00:27]} Kg4 {[%emt 0:14:07]} 52. Rd5 {[%emt 0:03:13]} Rxc7 {[%emt 0:00:48]} 53. Kxc7 {[%emt 0:00:36]} h4 {[%emt 0:00:04]} 54. gxh4 {[%emt 0:03:45]} gxh4 {[%emt 0:00:01]} 55. Rd8 {[%emt 0:01:39]} h3 {[%emt 0:00:12]} 56. Rh8 {[%emt 0:00:23]} Kg3 {[%emt 0:00:16]} 57. Rxh3+ {[%emt 0:00:29]} Kxh3 {[%emt 0:00:02]} 1/2-1/2

[Event "44th Chess Olympiad Open 2022"]
[Site "Chennai"]
[Date "2022.08.09"]
[Round "11.44"]
[White "Junior, Domingos"]
[Black "Lungu, Nase"]
[Result "1/2-1/2"]
[ECO "C56"]
[WhiteElo "2107"]
[BlackElo "2216"]
[Annotator "ChessBase"]
[PlyCount "66"]
[EventDate "2022.07.29"]
[EventType "team-tourn"]
[EventCountry "IND"]
[SourceTitle "playchess.com"]
[Source "ChessBase"]
[SourceQuality "1"]
[WhiteTeam "Angola"]
[BlackTeam "Zambia"]
[WhiteTeamCountry "ANG"]
[BlackTeamCountry "ZAM"]
[TimeControl "40/5400+30:1800+30"]

1. e4 {[%emt 0:00:02]} e5 {[%emt 0:00:07]} 2. Nf3 {[%emt 0:00:06]} Nc6 {[%emt 0:00:03]} 3. Bc4 {[%emt 0:00:08]} Nf6 {[%emt 0:00:08]} 4. O-O {[%emt 0:00:02]} Bc5 {[%emt 0:00:08]} 5. d4 {[%emt 0:00:05]} exd4 {[%emt 0:01:29]} 6. e5 {[%emt 0:00:02]} d5 {[%emt 0:00:10]} 7. exf6 {[%emt 0:00:06]} dxc4 {[%emt 0:00:07]} 8. Re1+ {[%emt 0:00:13]} Be6 {[%emt 0:00:08]} 9. fxg7 {[%emt 0:00:49]} Rg8 {[%emt 0:00:08]} 10. Bg5 {[%emt 0:00:05]} Be7 {[%emt 0:08:24]} 11. Bxe7 {[%emt 0:01:29]} Kxe7 {[%emt 0:00:15]} 12. Nbd2 {[%emt 0:01:02]} Qd5 {[%emt 0:00:25]} 13. Ne4 {[%emt 0:02:16]} Rxg7 {[%emt 0:00:25]} 14. Qd2 {[%emt 0:00:30]} Rag8 {[%emt 0:00:50]} 15. Ng3 {[%emt 0:01:47]} Kd8 {[%emt 0:01:00]} 16. Nxd4 {[%emt 0:15:10]} Nxd4 {[%emt 0:00:10]} 17. Rad1 {[%emt 0:00:08]} c5 {[%emt 0:00:25]} 18. c3 {[%emt 0:03:09]} Bh3 {[%emt 0:00:43]} 19. f3 {[%emt 0:12:40]} Nxf3+ {[%emt 0:02:45]} 20. gxf3 {[%emt 0:00:04]} Qxd2 {[%emt 0:00:08]} 21. Rxd2+ {[%emt 0:00:09]} Kc8 {[%emt 0:00:43]} 22. Rd5 {[%emt 0:07:09]} b6 {[%emt 0:13:36]} 23. Kf2 {[%emt 0:08:21]} Be6 {[%emt 0:30:55]} 24. Rd2 {[%emt 0:05:33]} Kc7 {[%emt 0:00:53]} 25. f4 {[%emt 0:02:20]} Rg4 {[%emt 0:05:33]} 26. Kf3 {[%emt 0:02:38]} Kc6 {[%emt 0:01:43]} 27. Re5 {[%emt 0:00:49]} Rh4 {[%emt 0:01:02]} 28. f5 {[%emt 0:03:11]} Bc8 {[%emt 0:00:39]} 29. Re7 {[%emt 0:01:00]} f6 {[%emt 0:05:18]} 30. a4 {[%emt 0:14:26]} a6 {[%emt 0:13:58]} 31. Ne4 {[%emt 0:06:53]} Rh3+ {[%emt 0:00:24]} 32. Kf4 {[%emt 0:00:35]} Rh4+ {[%emt 0:00:16]} 33. Kf3 {[%emt 0:00:30]} Rh3+ {[%emt 0:00:06]} 1/2-1/2

[Event "44th Chess Olympiad Open 2022"]
[Site "Chennai"]
[Date "2022.08.09"]
[Round "11.45"]
[White "Tissir, Mohamed"]
[Black "Brahami, Lamine"]
[Result "1-0"]
[ECO "B86"]
[WhiteElo "2366"]
[BlackElo "2189"]
[Annotator "RC"]
[PlyCount "133"]
[EventDate "2022.07.29"]
[EventType "team-tourn"]
[EventCountry "IND"]
[SourceTitle "playchess.com"]
[Source "ChessBase"]
[SourceQuality "1"]
[WhiteTeam "Morocco"]
[BlackTeam "Algeria"]
[WhiteTeamCountry "MAR"]
[BlackTeamCountry "ALG"]
[TimeControl "40/5400+30:1800+30"]

1. e4 {[%emt 0:00:04]} c5 {[%emt 0:00:15]} 2. Nf3 {[%emt 0:00:30]} d6 {[%emt 0:00:27]} 3. d4 {[%emt 0:00:11]} cxd4 {[%emt 0:00:06]} 4. Nxd4 {[%emt 0:00:04]} Nf6 {[%emt 0:00:07]} 5. Nc3 {[%emt 0:00:05]} a6 {[%emt 0:00:05]} 6. Bc4 {[%emt 0:02:39]} e6 {[%emt 0:00:42]} 7. Bb3 {[%emt 0:00:07]} Be7 {[%emt 0:02:07]} 8. g4 {[%emt 0:00:46]} O-O {[%emt 0:11:30]} 9. g5 {[%emt 0:03:48]} Nfd7 {[%emt 0:01:41]} 10. h4 {[%emt 0:02:25]} Nc5 {[%emt 0:00:37]} 11. Rg1 {[%emt 0:03:52]} b5 {[%emt 0:01:57]} 12. Qe2 {[%emt 0:15:39]} b4 {[%emt 0:06:17]} 13. Na4 {[%emt 0:02:08]} Bd7 {[%emt 0:25:01]} 14. Nxc5 {[%emt 0:00:50]} dxc5 {[%emt 0:00:03]} 15. Nf3 {[%emt 0:00:11]} Bb5 {[%emt 0:00:21]} 16. Bc4 {[%emt 0:00:27]} Qb6 {[%emt 0:03:21]} 17. h5 {[%emt 0:16:40]} Bxc4 {[%emt 0:02:44]} 18. Qxc4 {[%emt 0:00:07]} Qb5 {[%emt 0:00:03]} 19. Qe2 {[%emt 0:05:14]} Nc6 {[%emt 0:01:47]} 20. Be3 {[%emt 0:01:37]} Rfd8 {[%emt 0:05:41]} 21. Nd2 {[%emt 0:30:50]} Nd4 {[%emt 0:21:26]} 22. Bxd4 {[%emt 0:00:11]} Rxd4 {[%emt 0:00:10]} 23. b3 {[%emt 0:04:40]} Qxe2+ {[%emt 0:01:41]} 24. Kxe2 {[%emt 0:00:07]} Rad8 {[%emt 0:00:07]} 25. Rad1 {[%emt 0:00:39]} Bd6 {[%emt 0:03:13]} 26. Rg4 {[%emt 0:06:22]} Bc7 {[%emt 0:01:50]} 27. f4 {[%emt 0:00:39]} a5 {[%emt 0:00:53]} 28. Ke3 {[%emt 0:00:13]} Bb6 {[%emt 0:00:59]} 29. Ke2 {[%emt 0:00:00]} a4 {[%emt 0:00:47]} 30. Rg3 {[%emt 0:00:48]} Bc7 {[%emt 0:00:47]} 31. Rf3 {[%emt 0:00:18]} Kf8 {[%emt 0:01:01]} 32. Rf2 {[%emt 0:03:19]} Ke7 {[%emt 0:00:41]} 33. Rf3 {[%emt 0:00:40]} g6 {[%emt 0:00:58]} 34. h6 {[%emt 0:00:34]} f6 {[%emt 0:00:31]} 35. gxf6+ {[%emt 0:00:34]} Kxf6 {[%emt 0:00:08]} 36. Ke3 {[%emt 0:00:31]} R8d7 {[%emt 0:00:45]} 37. Rff1 {[%emt 0:00:28]} c4 {[%emt 0:03:36]} 38. bxc4 {[%emt 0:00:08]} Ba5 {[%emt 0:00:11]} 39. e5+ {[%emt 0:00:59]} Kf5 {[%emt 0:00:53]} 40. Rg1 {[%emt 0:00:32]} Rxf4 {[%emt 0:00:45]} 41. c5 {[%emt 0:02:17]} Rd5 {[%emt 0:08:05]} 42. Nf3 {[%emt 0:06:21]} Re4+ {[%emt 0:02:32]} 43. Kf2 {[%emt 0:00:01]} Rxc5 {[%emt 0:00:36]} 44. Nd4+ {[%emt 0:03:04]} Rxd4 {[%emt 0:07:45]} 45. Rxd4 {[%emt 0:00:02]} Rxc2+ {[%emt 0:01:53]} 46. Kf3 {[%emt 0:00:01]} Rc3+ {[%emt 0:05:39]} 47. Kg2 {[%emt 0:07:10]} a3 {[%emt 0:03:07]} 48. Rd7 {[%emt 0:00:51]} b3 {[%emt 0:01:31]} 49. axb3 {[%emt 0:00:05]} Bb6 {[%emt 0:02:37]} 50. Rf1+ {[%emt 0:05:44]} Kxe5 {[%emt 0:00:34]} 51. Rxh7 {[%emt 0:00:13]} Be3 {[%emt 0:02:29]} 52. Rh8 {[%emt 0:02:05]} a2 {[%emt 0:01:43]} 53. h7 {[%emt 0:00:37]} Rc2+ {[%emt 0:00:05]} 54. Kh3 {[%emt 0:03:33]} Rc7 {[%emt 0:01:00]} 55. Kg4 {[%emt 0:00:09]} Ra7 {[%emt 0:01:25]} 56. Re1 {[%emt 0:02:28]} Ke4 {[%emt 0:00:26]} 57. Re8 {[%emt 0:00:35]} Rxh7 {[%emt 0:00:23]} 58. Rxe6+ {[%emt 0:00:08]} Kd4 {[%emt 0:00:12]} 59. Rd1+ {[%emt 0:00:56]} Kc3 {[%emt 0:00:58]} 60. Rxe3+ {[%emt 0:00:13]} Kc2 {[%emt 0:00:05]} 61. Rf1 {[%emt 0:03:57]} Kb2 {[%emt 0:00:41]} 62. b4 {[%emt 0:00:27]} Rh2 {[%emt 0:00:53]} 63. Ree1 {[%emt 0:00:31]} Ka3 {[%emt 0:00:29]} 64. b5 {[%emt 0:00:33]} Rb2 {[%emt 0:00:34]} 65. Rf3+ {[%emt 0:00:12]} Ka4 {[%emt 0:00:22]} 66. Ra1 {[%emt 0:00:06]} g5 {[%emt 0:00:38]} 67. Kg3 {[%emt 0:00:12]} 1-0

[Event "44th Chess Olympiad Open 2022"]
[Site "Chennai"]
[Date "2022.08.09"]
[Round "11.45"]
[White "Nassr, Ali"]
[Black "Msellek, Ilyass"]
[Result "1/2-1/2"]
[ECO "D35"]
[WhiteElo "2263"]
[BlackElo "2398"]
[Annotator "RC"]
[PlyCount "64"]
[EventDate "2022.07.29"]
[EventType "team-tourn"]
[EventCountry "IND"]
[SourceTitle "playchess.com"]
[Source "ChessBase"]
[SourceQuality "1"]
[WhiteTeam "Algeria"]
[BlackTeam "Morocco"]
[WhiteTeamCountry "ALG"]
[BlackTeamCountry "MAR"]
[TimeControl "40/5400+30:1800+30"]

1. c4 {[%emt 0:00:10]} e6 {[%emt 0:00:38]} 2. Nc3 {[%emt 0:00:27]} d5 {[%emt 0:02:48]} 3. cxd5 {[%emt 0:01:51]} exd5 {[%emt 0:00:00]} 4. d4 {[%emt 0:00:11]} c6 {[%emt 0:00:00]} 5. Nf3 {[%emt 0:02:38]} Bf5 {[%emt 0:01:22]} 6. Bf4 {[%emt 0:01:11]} Bd6 {[%emt 0:00:31]} 7. Bxd6 {[%emt 0:00:28]} Qxd6 {[%emt 0:00:09]} 8. e3 {[%emt 0:00:19]} Nd7 {[%emt 0:02:25]} 9. Bd3 {[%emt 0:05:43]} Bxd3 {[%emt 0:00:38]} 10. Qxd3 {[%emt 0:00:04]} Ngf6 {[%emt 0:00:05]} 11. O-O {[%emt 0:00:30]} O-O {[%emt 0:00:17]} 12. Rab1 {[%emt 0:00:32]} a5 {[%emt 0:01:50]} 13. Qc2 {[%emt 0:01:19]} Rfe8 {[%emt 0:15:44]} 14. h3 {[%emt 0:00:53]} g6 {[%emt 0:06:39]} 15. Ne1 {[%emt 0:03:09]} Ne4 {[%emt 0:02:05]} 16. Nd3 {[%emt 0:00:30]} h5 {[%emt 0:05:50]} 17. Rfc1 {[%emt 0:04:23]} g5 {[%emt 0:06:39]} 18. Nxe4 {[%emt 0:03:15]} Rxe4 {[%emt 0:00:31]} 19. b4 {[%emt 0:10:17]} axb4 {[%emt 0:08:47]} 20. Rxb4 {[%emt 0:00:13]} Ra7 {[%emt 0:00:43]} 21. Ra4 {[%emt 0:09:23]} Rxa4 {[%emt 0:03:52]} 22. Qxa4 {[%emt 0:00:09]} Re8 {[%emt 0:00:44]} 23. Qa7 {[%emt 0:08:17]} Qb8 {[%emt 0:10:00]} 24. Qa3 {[%emt 0:02:08]} Nb6 {[%emt 0:03:02]} 25. Qb3 {[%emt 0:11:05]} Nc4 {[%emt 0:00:34]} 26. Qd1 {[%emt 0:00:43]} h4 {[%emt 0:03:52]} 27. Rb1 {[%emt 0:02:41]} b6 {[%emt 0:03:16]} 28. Nb2 {[%emt 0:04:01]} Na5 {[%emt 0:06:12]} 29. Na4 {[%emt 0:10:10]} Nc4 {[%emt 0:00:01]} 30. Nb2 {[%emt 0:02:48]} Na5 {[%emt 0:00:33]} 31. Na4 {[%emt 0:00:49]} Nc4 {[%emt 0:00:59]} 32. Nb2 {[%emt 0:04:32]} Na5 {[%emt 0:02:03]} 1/2-1/2

[Event "44th Chess Olympiad Open 2022"]
[Site "Chennai"]
[Date "2022.08.09"]
[Round "11.45"]
[White "Djabri, Massinas"]
[Black "Choukri, Adel"]
[Result "1-0"]
[ECO "D24"]
[WhiteElo "2206"]
[BlackElo "2306"]
[Annotator "RC"]
[PlyCount "141"]
[EventDate "2022.07.29"]
[EventType "team-tourn"]
[EventCountry "IND"]
[SourceTitle "playchess.com"]
[Source "ChessBase"]
[SourceQuality "1"]
[WhiteTeam "Algeria"]
[BlackTeam "Morocco"]
[WhiteTeamCountry "ALG"]
[BlackTeamCountry "MAR"]
[TimeControl "40/5400+30:1800+30"]

1. d4 {[%emt 0:00:16]} Nf6 {[%emt 0:00:09]} 2. c4 {[%emt 0:00:04]} e6 {[%emt 0:00:10]} 3. Nf3 {[%emt 0:00:03]} d5 {[%emt 0:00:07]} 4. Nc3 {[%emt 0:00:21]} dxc4 {[%emt 0:00:21]} 5. e4 {[%emt 0:00:33]} b5 {[%emt 0:00:24]} 6. e5 {[%emt 0:00:17]} Nd5 {[%emt 0:00:06]} 7. Nxb5 {[%emt 0:00:13]} Nb6 {[%emt 0:00:09]} 8. Be2 {[%emt 0:03:16]} Be7 {[%emt 0:00:14]} 9. h4 {[%emt 0:04:33]} Nc6 {[%emt 0:00:35]} 10. a3 {[%emt 0:07:54]} Bb7 {[%emt 0:03:06]} 11. h5 {[%emt 0:03:18]} Na5 {[%emt 0:07:00]} 12. Be3 {[%emt 0:04:25]} Nb3 {[%emt 0:06:13]} 13. Ra2 {[%emt 0:08:30]} a6 {[%emt 0:07:07]} 14. Nc3 {[%emt 0:01:12]} Rb8 {[%emt 0:13:50]} 15. O-O {[%emt 0:19:06]} O-O {[%emt 0:03:25]} 16. h6 {[%emt 0:04:03]} g6 {[%emt 0:00:08]} 17. a4 {[%emt 0:01:20]} a5 {[%emt 0:00:10]} 18. Nb5 {[%emt 0:00:35]} Bc6 {[%emt 0:01:03]} 19. Nd2 {[%emt 0:04:34]} Qd7 {[%emt 0:07:04]} 20. Nxc4 {[%emt 0:15:21]} Qd5 {[%emt 0:00:24]} 21. Bf3 {[%emt 0:00:04]} Qxc4 {[%emt 0:00:31]} 22. Bxc6 {[%emt 0:00:06]} Qxc6 {[%emt 0:01:03]} 23. Qxb3 {[%emt 0:00:07]} Qe4 {[%emt 0:05:52]} 24. Qd1 {[%emt 0:08:23]} Rfd8 {[%emt 0:26:54]} 25. Re1 {[%emt 0:04:37]} Bb4 {[%emt 0:08:09]} 26. Bd2 {[%emt 0:01:27]} Qh4 {[%emt 0:00:02]} 27. Bxb4 {[%emt 0:00:33]} axb4 {[%emt 0:00:06]} 28. b3 {[%emt 0:00:39]} Nd5 {[%emt 0:00:40]} 29. Rc2 {[%emt 0:00:36]} Qxh6 {[%emt 0:02:28]} 30. Qf3 {[%emt 0:00:39]} Rd7 {[%emt 0:01:42]} 31. Rec1 {[%emt 0:00:29]} Rbd8 {[%emt 0:02:38]} 32. Nxc7 {[%emt 0:02:07]} Rc8 {[%emt 0:01:59]} 33. Na6 {[%emt 0:05:00]} Qxc1+ {[%emt 0:01:40]} 34. Rxc1 {[%emt 0:00:05]} Rxc1+ {[%emt 0:00:03]} 35. Kh2 {[%emt 0:00:05]} Rc3 {[%emt 0:00:38]} 36. Qe4 {[%emt 0:01:31]} h5 {[%emt 0:00:54]} 37. Nc5 {[%emt 0:00:00]} Re7 {[%emt 0:00:24]} 38. a5 {[%emt 0:00:01]} Kg7 {[%emt 0:00:30]} 39. a6 {[%emt 0:00:09]} Rc1 {[%emt 0:00:55]} 40. Qd3 {[%emt 0:00:49]} Ra1 {[%emt 0:00:20]} 41. Qb5 {[%emt 0:31:13]} Ra7 {[%emt 0:05:11]} 42. Nxe6+ {[%emt 0:00:00]} fxe6 {[%emt 0:00:09]} 43. Qb7+ {[%emt 0:00:00]} Rxb7 {[%emt 0:00:08]} 44. axb7 {[%emt 0:00:00]} Ra2 {[%emt 0:03:02]} 45. b8=Q {[%emt 0:00:00]} Rxf2 {[%emt 0:00:10]} 46. Qe8 {[%emt 0:00:00]} Nf4 {[%emt 0:16:52]} 47. Kg3 {[%emt 0:00:00]} Rf1 {[%emt 0:01:12]} 48. Qb5 {[%emt 0:00:00]} h4+ {[%emt 0:00:10]} 49. Kxh4 {[%emt 0:00:00]} Nxg2+ {[%emt 0:03:05]} 50. Kg3 {[%emt 0:00:00]} Ne3 {[%emt 0:00:17]} 51. Qd7+ {[%emt 0:00:00]} Kh6 {[%emt 0:02:48]} 52. Qxe6 {[%emt 0:00:00]} Nf5+ {[%emt 0:00:20]} 53. Kh2 {[%emt 0:00:00]} Rd1 {[%emt 0:01:45]} 54. d5 {[%emt 0:00:00]} Rd2+ {[%emt 0:00:26]} 55. Kg1 {[%emt 0:00:00]} Rd1+ {[%emt 0:02:11]} 56. Kf2 {[%emt 0:00:00]} Kg5 {[%emt 0:00:40]} 57. d6 {[%emt 0:00:00]} Kf4 {[%emt 0:00:25]} 58. Qc4+ {[%emt 0:00:00]} Nd4 {[%emt 0:00:51]} 59. Qxb4 {[%emt 0:00:11]} Kxe5 {[%emt 0:00:02]} 60. d7 {[%emt 0:00:51]} Ne6 {[%emt 0:00:21]} 61. Qc3+ {[%emt 0:03:24]} Kd6 {[%emt 0:00:53]} 62. Qc8 {[%emt 0:00:17]} Ke7 {[%emt 0:00:14]} 63. Qe8+ {[%emt 0:00:10]} Kf6 {[%emt 0:00:01]} 64. b4 {[%emt 0:00:14]} Rd5 {[%emt 0:01:00]} 65. b5 {[%emt 0:00:46]} Rf5+ {[%emt 0:00:40]} 66. Ke1 {[%emt 0:00:30]} Re5+ {[%emt 0:00:05]} 67. Kd2 {[%emt 0:00:04]} Rd5+ {[%emt 0:00:55]} 68. Kc3 {[%emt 0:00:17]} Rd6 {[%emt 0:00:33]} 69. b6 {[%emt 0:00:36]} Rc6+ {[%emt 0:00:09]} 70. Kd2 {[%emt 0:00:06]} Rd6+ {[%emt 0:00:38]} 71. Ke1 {[%emt 0:00:13]} 1-0

[Event "44th Chess Olympiad Open 2022"]
[Site "Chennai"]
[Date "2022.08.09"]
[Round "11.45"]
[White "Zrikem, Nassim"]
[Black "Araoun, Saadi"]
[Result "1-0"]
[ECO "B12"]
[WhiteElo "2075"]
[BlackElo "2049"]
[Annotator "NA RC"]
[PlyCount "43"]
[EventDate "2022.07.29"]
[EventType "team-tourn"]
[EventCountry "IND"]
[SourceTitle "playchess.com"]
[Source "ChessBase"]
[SourceQuality "1"]
[WhiteTeam "Morocco"]
[BlackTeam "Algeria"]
[WhiteTeamCountry "MAR"]
[BlackTeamCountry "ALG"]
[TimeControl "40/5400+30:1800+30"]

1. e4 {[%emt 0:00:08]} c6 {[%emt 0:00:07]} 2. d4 {[%emt 0:00:13]} d5 {[%emt 0:00:06]} 3. e5 {[%emt 0:00:18]} c5 {[%emt 0:00:33]} 4. dxc5 {[%emt 0:00:19]} e6 {[%emt 0:00:10]} 5. Be3 {[%emt 0:00:26]} Nd7 {[%emt 0:01:00]} 6. Bb5 {[%emt 0:02:10]} Ne7 {[%emt 0:00:46]} 7. b4 {[%emt 0:04:20]} Nf5 {[%emt 0:09:09]} 8. Nf3 {[%emt 0:02:06]} Nxe3 {[%emt 0:05:54]} 9. fxe3 {[%emt 0:00:05]} a6 {[%emt 0:00:45]} 10. Ba4 {[%emt 0:19:13]} Qc7 {[%emt 0:06:14]} 11. c4 {[%emt 0:14:06]} Be7 {[%emt 0:43:46]} 12. cxd5 {[%emt 0:03:35]} exd5 {[%emt 0:00:31]} 13. Nc3 {[%emt 0:00:55]} O-O {[%emt 0:12:03]} 14. Nxd5 {[%emt 0:00:15]} Qd8 {[%emt 0:00:06]} 15. Nxe7+ {[%emt 0:08:14]} Qxe7 {[%emt 0:00:13]} 16. Qd6 {[%emt 0:00:05]} Qe6 {[%emt 0:08:20]} 17. Rd1 {[%emt 0:00:28]} Qxa2 {[%emt 0:08:30]} 18. Bxd7 {[%emt 0:01:00]} Rd8 {[%emt 0:00:27]} 19. e6 {[%emt 0:04:12]} fxe6 {[%emt 0:00:40]} 20. Qe7 {[%emt 0:00:34]} Bxd7 {[%emt 0:00:33]} 21. O-O {[%emt 0:00:27]} Qa4 {[%emt 0:00:33]} 22. Ne5 {[%emt 0:00:18]} 1-0